[Event "*** Titled Tuesday Blitz"]
[Site "Chess.com"]
[Date "2021.02.09"]
[Round "1"]
[White "wannabe2700"]
[Black "Savagelittlemole"]
[Result "1-0"]
[WhiteElo "2777"]
[BlackElo "2403"]
[TimeControl "180+1"]
[EndTime "10:08:05 PST"]
[Termination "wannabe2700 won by resignation"]

1. b3 {[%clk 0:02:58.9]} 1... e5 {[%clk 0:02:59.4]} 2. Bb2 {[%clk 0:02:59.8]}
2... Nc6 {[%clk 0:03:00]} 3. e3 {[%clk 0:03:00.1]} 3... a6 {[%clk 0:03:00.7]} 4.
c4 {[%clk 0:02:56.4]} 4... Nf6 {[%clk 0:03:00.3]} 5. Nf3 {[%clk 0:02:52.4]} 5...
d6 {[%clk 0:03:00.5]} 6. Nc3 {[%clk 0:02:51.6]} 6... Be7 {[%clk 0:03:00.2]} 7.
d4 {[%clk 0:02:51]} 7... Bg4 {[%clk 0:02:57.9]} 8. d5 {[%clk 0:02:47]} 8... Nb8
{[%clk 0:02:52.8]} 9. h3 {[%clk 0:02:46.6]} 9... Bxf3 {[%clk 0:02:49.4]} 10.
Qxf3 {[%clk 0:02:46.3]} 10... Nbd7 {[%clk 0:02:49.1]} 11. Bd3 {[%clk 0:02:43]}
11... Nc5 {[%clk 0:02:44.5]} 12. Bc2 {[%clk 0:02:42.8]} 12... a5 {[%clk
0:02:44.5]} 13. a3 {[%clk 0:02:34.1]} 13... O-O {[%clk 0:02:26.1]} 14. O-O
{[%clk 0:02:33.7]} 14... Re8 {[%clk 0:02:24.8]} 15. Bc1 {[%clk 0:02:03.3]} 15...
Bf8 {[%clk 0:02:18.5]} 16. e4 {[%clk 0:01:54.4]} 16... Qd7 {[%clk 0:02:08.6]}
17. Bg5 {[%clk 0:01:52]} 17... Be7 {[%clk 0:02:04.5]} 18. Bd2 {[%clk 0:01:49]}
18... g6 {[%clk 0:02:00.7]} 19. b4 {[%clk 0:01:44.6]} 19... axb4 {[%clk
0:01:40.2]} 20. axb4 {[%clk 0:01:45.5]} 20... Rxa1 {[%clk 0:01:40.6]} 21. Rxa1
{[%clk 0:01:45.1]} 21... Na6 {[%clk 0:01:41.1]} 22. Ba4 {[%clk 0:01:37.3]} 22...
c6 {[%clk 0:01:37.7]} 23. b5 {[%clk 0:01:34.6]} 23... Nb8 {[%clk 0:01:32.4]} 24.
bxc6 {[%clk 0:01:20.3]} 24... bxc6 {[%clk 0:01:32]} 25. dxc6 {[%clk 0:01:21]}
25... Nxc6 {[%clk 0:01:11.3]} 26. Nd5 {[%clk 0:01:20.8]} 26... Kg7 {[%clk
0:01:10.7]} 27. Nxe7 {[%clk 0:01:01.1]} 27... Rxe7 {[%clk 0:01:10.6]} 28. Bh6+
{[%clk 0:00:43.2]} 28... Kxh6 {[%clk 0:01:00.4]} 29. Qxf6 {[%clk 0:00:44.1]}
29... Re6 {[%clk 0:00:52.6]} 30. Bxc6 {[%clk 0:00:26.7]} 30... Qxc6 {[%clk
0:00:48.7]} 31. Qxf7 {[%clk 0:00:27.2]} 31... Qe8 {[%clk 0:00:28.3]} 32. Qc7
{[%clk 0:00:21.2]} 32... Qe7 {[%clk 0:00:20.5]} 33. Qb6 {[%clk 0:00:19.4]} 33...
Qf6 {[%clk 0:00:14.1]} 34. Ra7 {[%clk 0:00:18.3]} 34... Re7 {[%clk 0:00:14.5]}
35. Ra6 {[%clk 0:00:17.4]} 35... Rd7 {[%clk 0:00:10.6]} 36. c5 {[%clk
0:00:17.7]} 36... Qf4 {[%clk 0:00:10]} 37. c6 {[%clk 0:00:10.9]} 37... Rf7
{[%clk 0:00:10.2]} 38. c7 {[%clk 0:00:10.3]} 38... Qc1+ {[%clk 0:00:08.8]} 39.
Kh2 {[%clk 0:00:10.9]} 39... Qxc7 {[%clk 0:00:08.8]} 40. Qxd6 {[%clk 0:00:09.9]}
40... Qxd6 {[%clk 0:00:08.7]} 41. Rxd6 {[%clk 0:00:10.8]} 41... Re7 {[%clk
0:00:08.8]} 42. Kg3 {[%clk 0:00:10.6]} 42... Kg5 {[%clk 0:00:08.7]} 43. Kf3
{[%clk 0:00:11.1]} 43... h5 {[%clk 0:00:08.5]} 44. Ke3 {[%clk 0:00:10.8]} 44...
h4 {[%clk 0:00:06.9]} 45. g3 {[%clk 0:00:10.9]} 45... hxg3 {[%clk 0:00:06.4]}
46. fxg3 {[%clk 0:00:11.8]} 46... Rh7 {[%clk 0:00:06.8]} 47. h4+ {[%clk
0:00:11.1]} 47... Kh5 {[%clk 0:00:06]} 48. Re6 {[%clk 0:00:11.3]} 48... Rg7
{[%clk 0:00:05.3]} 49. Rxe5+ {[%clk 0:00:11.6]} 49... Kg4 {[%clk 0:00:05.8]} 50.
Rg5+ {[%clk 0:00:11.9]} 50... Kh3 {[%clk 0:00:06.3]} 51. h5 {[%clk 0:00:12.4]}
51... Rh7 {[%clk 0:00:05.3]} 52. hxg6 {[%clk 0:00:12.4]} 52... Rg7 {[%clk
0:00:05.8]} 53. e5 {[%clk 0:00:13]} 53... Kg2 {[%clk 0:00:05.2]} 54. e6 {[%clk
0:00:13.5]} 54... Re7 {[%clk 0:00:05.5]} 55. g7 {[%clk 0:00:11.8]} 55... Rxe6+
{[%clk 0:00:05.8]} 56. Kf4 {[%clk 0:00:11.9]} 56... Rf6+ {[%clk 0:00:06]} 57.
Ke5 {[%clk 0:00:12.4]} 1-0

[Event "*** Titled Tuesday Blitz"]
[Site "Chess.com"]
[Date "2021.02.09"]
[Round "1"]
[White "Anton_Demchenko"]
[Black "GM_Huschenbeth"]
[Result "0-1"]
[WhiteElo "2855"]
[BlackElo "2497"]
[TimeControl "180+1"]
[EndTime "10:08:06 PST"]
[Termination "GM_Huschenbeth won on time"]

1. e4 {[%clk 0:02:58.3]} 1... c5 {[%clk 0:02:55.7]} 2. Nf3 {[%clk 0:02:57.2]}
2... d6 {[%clk 0:02:55.4]} 3. d4 {[%clk 0:02:55.9]} 3... cxd4 {[%clk 0:02:56.3]}
4. Qxd4 {[%clk 0:02:56.6]} 4... Nf6 {[%clk 0:02:54.1]} 5. Nc3 {[%clk 0:02:54.7]}
5... Nc6 {[%clk 0:02:52.3]} 6. Qe3 {[%clk 0:02:55]} 6... g6 {[%clk 0:02:49.8]}
7. h3 {[%clk 0:02:55.1]} 7... Bg7 {[%clk 0:02:49.4]} 8. Bc4 {[%clk 0:02:55.2]}
8... O-O {[%clk 0:02:48.8]} 9. O-O {[%clk 0:02:55.8]} 9... Bd7 {[%clk
0:02:43.8]} 10. Rd1 {[%clk 0:02:51.6]} 10... Rc8 {[%clk 0:02:42.6]} 11. Bb3
{[%clk 0:02:47]} 11... Qc7 {[%clk 0:02:13.4]} 12. Qf4 {[%clk 0:02:44.1]} 12...
Na5 {[%clk 0:02:06]} 13. Qh4 {[%clk 0:02:43.9]} 13... Rfe8 {[%clk 0:01:51.1]}
14. Bh6 {[%clk 0:02:39.1]} 14... Bh8 {[%clk 0:01:51.2]} 15. Be3 {[%clk
0:02:21.5]} 15... Nxb3 {[%clk 0:01:50]} 16. axb3 {[%clk 0:02:21.3]} 16... a6
{[%clk 0:01:46.4]} 17. Ng5 {[%clk 0:02:19]} 17... Bc6 {[%clk 0:01:33.1]} 18. Bd4
{[%clk 0:01:56.3]} 18... e5 {[%clk 0:01:04.6]} 19. Be3 {[%clk 0:01:56.1]} 19...
Bg7 {[%clk 0:00:57.9]} 20. Rd3 {[%clk 0:01:54]} 20... h6 {[%clk 0:00:50.3]} 21.
Nf3 {[%clk 0:01:54]} 21... g5 {[%clk 0:00:50.8]} 22. Bxg5 {[%clk 0:01:47.8]}
22... hxg5 {[%clk 0:00:51.7]} 23. Nxg5 {[%clk 0:01:48.2]} 23... Kf8 {[%clk
0:00:12.9]} 24. Rf3 {[%clk 0:01:27.6]} 24... Qe7 {[%clk 0:00:12.6]} 25. Rd1
{[%clk 0:01:16.6]} 25... Red8 {[%clk 0:00:12.5]} 26. Rdd3 {[%clk 0:01:02.3]}
26... Ke8 {[%clk 0:00:11.5]} 27. Ne2 {[%clk 0:00:37.4]} 27... Kd7 {[%clk
0:00:11.3]} 28. Ng3 {[%clk 0:00:37.2]} 28... Rh8 {[%clk 0:00:11.2]} 29. Rxf6
{[%clk 0:00:20.6]} 29... Rxh4 {[%clk 0:00:09.3]} 30. Rxf7 {[%clk 0:00:21]} 30...
Qxf7 {[%clk 0:00:09]} 31. Nxf7 {[%clk 0:00:21.9]} 31... Kc7 {[%clk 0:00:06.1]}
32. Ng5 {[%clk 0:00:15.2]} 32... Kb8 {[%clk 0:00:03.5]} 33. Rxd6 {[%clk
0:00:12.7]} 33... Rhh8 {[%clk 0:00:02.8]} 34. Rg6 {[%clk 0:00:11.1]} 34... Bf8
{[%clk 0:00:02.9]} 35. Nf7 {[%clk 0:00:11]} 35... Rh7 {[%clk 0:00:02.3]} 36.
Nxe5 {[%clk 0:00:11.1]} 36... Be8 {[%clk 0:00:01.4]} 37. Rg8 {[%clk 0:00:10]}
37... Bc5 {[%clk 0:00:02.3]} 38. Nd3 {[%clk 0:00:09.6]} 38... Bd4 {[%clk
0:00:02.6]} 39. Rg5 {[%clk 0:00:08.3]} 39... Bc6 {[%clk 0:00:02.4]} 40. Nf5
{[%clk 0:00:07.2]} 40... Ba7 {[%clk 0:00:03.3]} 41. Nd6 {[%clk 0:00:04.4]} 41...
Rd8 {[%clk 0:00:03.4]} 42. e5 {[%clk 0:00:05]} 42... Re7 {[%clk 0:00:03.4]} 43.
h4 {[%clk 0:00:04.7]} 43... Rf8 {[%clk 0:00:02.9]} 44. h5 {[%clk 0:00:04.9]}
44... Bb5 {[%clk 0:00:03.5]} 45. c4 {[%clk 0:00:04.5]} 45... Be8 {[%clk
0:00:03.2]} 46. h6 {[%clk 0:00:04.6]} 46... Rh7 {[%clk 0:00:03.3]} 47. Rg7
{[%clk 0:00:02.5]} 47... Rxg7 {[%clk 0:00:01.8]} 48. hxg7 {[%clk 0:00:03.4]}
48... Rg8 {[%clk 0:00:02.3]} 0-1

[Event "*** Titled Tuesday Blitz"]
[Site "Chess.com"]
[Date "2021.02.09"]
[Round "1"]
[White "vladimirdamjanovic"]
[Black "Piccadilly123"]
[Result "1-0"]
[WhiteElo "2517"]
[BlackElo "2189"]
[TimeControl "180+1"]
[EndTime "10:08:06 PST"]
[Termination "vladimirdamjanovic won by resignation"]

1. d4 {[%clk 0:03:00.9]} 1... Nf6 {[%clk 0:02:53.3]} 2. Nc3 {[%clk 0:03:01.2]}
2... d5 {[%clk 0:02:53.1]} 3. Bf4 {[%clk 0:03:01.8]} 3... e6 {[%clk 0:02:52.6]}
4. Nb5 {[%clk 0:03:00.8]} 4... Na6 {[%clk 0:02:51.7]} 5. e3 {[%clk 0:03:01.4]}
5... c6 {[%clk 0:02:51]} 6. Nc3 {[%clk 0:03:01.5]} 6... Nc7 {[%clk 0:02:48.5]}
7. Nf3 {[%clk 0:03:01.3]} 7... Bd6 {[%clk 0:02:49.1]} 8. Bd3 {[%clk 0:03:01.6]}
8... O-O {[%clk 0:02:47.7]} 9. Ne5 {[%clk 0:02:52.9]} 9... Nd7 {[%clk
0:02:36.8]} 10. Nxf7 {[%clk 0:02:26.3]} 10... Rxf7 {[%clk 0:02:35.1]} 11. Bxd6
{[%clk 0:02:26.8]} 11... Ne8 {[%clk 0:02:27.5]} 12. Bg3 {[%clk 0:02:26.4]} 12...
Qf6 {[%clk 0:02:23.4]} 13. O-O {[%clk 0:02:24.1]} 13... c5 {[%clk 0:02:21.2]}
14. Bb5 {[%clk 0:02:13.5]} 14... a6 {[%clk 0:02:18.2]} 15. Bxd7 {[%clk
0:02:13.5]} 15... Bxd7 {[%clk 0:02:19.1]} 16. dxc5 {[%clk 0:02:14.4]} 16... Rc8
{[%clk 0:02:17.2]} 17. Qd4 {[%clk 0:02:13]} 17... Qg6 {[%clk 0:02:14.1]} 18. e4
{[%clk 0:01:54.8]} 18... dxe4 {[%clk 0:01:59.5]} 19. Nxe4 {[%clk 0:01:51.9]}
19... Bc6 {[%clk 0:01:59.6]} 20. Rae1 {[%clk 0:01:44]} 20... Rd7 {[%clk
0:01:54.9]} 21. Nd6 {[%clk 0:01:32.8]} 21... Nxd6 {[%clk 0:01:06.9]} 22. cxd6
{[%clk 0:01:33.7]} 22... Bb5 {[%clk 0:01:06.6]} 23. c3 {[%clk 0:00:46.6]} 23...
Bxf1 {[%clk 0:00:54]} 24. Kxf1 {[%clk 0:00:47.5]} 24... b5 {[%clk 0:00:47.5]}
25. Kg1 {[%clk 0:00:36.5]} 25... Qc2 {[%clk 0:00:41]} 26. Qg4 {[%clk 0:00:18.4]}
26... Re8 {[%clk 0:00:22.2]} 27. h4 {[%clk 0:00:18.6]} 27... Kf7 {[%clk
0:00:15]} 28. Qh5+ {[%clk 0:00:16.6]} 28... Qg6 {[%clk 0:00:15]} 29. Qf3+ {[%clk
0:00:16.3]} 29... Qf5 {[%clk 0:00:14]} 30. Qc6 {[%clk 0:00:16.8]} 30... Red8
{[%clk 0:00:13.4]} 31. Re3 {[%clk 0:00:17]} 31... Qd5 {[%clk 0:00:12.1]} 32.
Rf3+ {[%clk 0:00:13.7]} 32... Kg6 {[%clk 0:00:11.9]} 33. Qxa6 {[%clk 0:00:06.9]}
33... e5 {[%clk 0:00:11.1]} 34. Qa5 {[%clk 0:00:03]} 34... Rxd6 {[%clk
0:00:10.2]} 35. Re3 {[%clk 0:00:03.4]} 35... Re6 {[%clk 0:00:09.7]} 36. Kh2
{[%clk 0:00:03.7]} 36... Rde8 {[%clk 0:00:08.8]} 37. Qb4 {[%clk 0:00:03.7]}
37... h5 {[%clk 0:00:08.7]} 38. a4 {[%clk 0:00:02.8]} 38... bxa4 {[%clk
0:00:07.8]} 39. Qxa4 {[%clk 0:00:03.7]} 39... Kh7 {[%clk 0:00:06.9]} 40. c4
{[%clk 0:00:02.7]} 40... Qd4 {[%clk 0:00:06.8]} 41. Qc2+ {[%clk 0:00:02.2]}
41... g6 {[%clk 0:00:06.1]} 42. b4 {[%clk 0:00:02.7]} 42... Rc8 {[%clk
0:00:05.5]} 43. c5 {[%clk 0:00:02.6]} 43... Qxb4 {[%clk 0:00:03.6]} 44. Qa2
{[%clk 0:00:02.4]} 44... Rcc6 {[%clk 0:00:01.4]} 45. Rxe5 {[%clk 0:00:02.3]}
45... Qxc5 {[%clk 0:00:02.3]} 46. Rxe6 {[%clk 0:00:02.4]} 46... Rxe6 {[%clk
0:00:02.2]} 47. Qxe6 {[%clk 0:00:03.3]} 47... Qf5 {[%clk 0:00:02.3]} 48. Qxf5
{[%clk 0:00:03.6]} 48... gxf5 {[%clk 0:00:03.2]} 49. Bf4 {[%clk 0:00:04.5]}
49... Kg6 {[%clk 0:00:03.8]} 50. Kg3 {[%clk 0:00:05.2]} 50... Kf6 {[%clk
0:00:04.7]} 51. Kf3 {[%clk 0:00:06.1]} 51... Kg6 {[%clk 0:00:05.6]} 52. Ke3
{[%clk 0:00:07]} 52... Kf6 {[%clk 0:00:06.5]} 53. Kd4 {[%clk 0:00:07.5]} 53...
Kg6 {[%clk 0:00:07.4]} 54. Kd5 {[%clk 0:00:08]} 54... Kf6 {[%clk 0:00:08.3]} 55.
Kd6 {[%clk 0:00:08.7]} 55... Kg6 {[%clk 0:00:09.2]} 56. Ke5 {[%clk 0:00:09.4]}
56... Kg7 {[%clk 0:00:08.5]} 57. Kxf5 {[%clk 0:00:10.3]} 57... Kf7 {[%clk
0:00:09.1]} 58. Kg5 {[%clk 0:00:10.9]} 58... Kg7 {[%clk 0:00:10]} 59. Kxh5
{[%clk 0:00:11.5]} 1-0

[Event "*** Titled Tuesday Blitz"]
[Site "Chess.com"]
[Date "2021.02.09"]
[Round "1"]
[White "rpragchess"]
[Black "Rytenko_V"]
[Result "1-0"]
[WhiteElo "2856"]
[BlackElo "2434"]
[TimeControl "180+1"]
[EndTime "10:08:08 PST"]
[Termination "rpragchess won by resignation"]

1. Nf3 {[%clk 0:03:00.9]} 1... d5 {[%clk 0:02:56.1]} 2. e3 {[%clk 0:03:00.5]}
2... Nf6 {[%clk 0:02:56.5]} 3. c4 {[%clk 0:03:01.4]} 3... c6 {[%clk 0:02:56.4]}
4. b3 {[%clk 0:03:02]} 4... Bg4 {[%clk 0:02:56.3]} 5. Bb2 {[%clk 0:03:02.1]}
5... e6 {[%clk 0:02:56.5]} 6. h3 {[%clk 0:03:01.9]} 6... Bh5 {[%clk 0:02:56.2]}
7. Nc3 {[%clk 0:03:02.5]} 7... Bd6 {[%clk 0:02:55.9]} 8. d4 {[%clk 0:03:00.5]}
8... O-O {[%clk 0:02:54.6]} 9. Bd3 {[%clk 0:03:00.5]} 9... Nbd7 {[%clk
0:02:53.7]} 10. O-O {[%clk 0:03:00.7]} 10... Rc8 {[%clk 0:02:52.3]} 11. e4
{[%clk 0:02:58.5]} 11... dxe4 {[%clk 0:02:51.8]} 12. Nxe4 {[%clk 0:02:59.4]}
12... Nxe4 {[%clk 0:02:51.6]} 13. Bxe4 {[%clk 0:03:00.3]} 13... Bg6 {[%clk
0:02:51.8]} 14. Re1 {[%clk 0:02:58.9]} 14... Nf6 {[%clk 0:02:48.5]} 15. Bxg6
{[%clk 0:02:57.9]} 15... hxg6 {[%clk 0:02:49.4]} 16. Ne5 {[%clk 0:02:58.4]}
16... Qc7 {[%clk 0:02:33.1]} 17. Qe2 {[%clk 0:02:54]} 17... c5 {[%clk
0:02:26.5]} 18. Rad1 {[%clk 0:02:54]} 18... Rfd8 {[%clk 0:02:24]} 19. Rd3 {[%clk
0:02:39.7]} 19... Bxe5 {[%clk 0:01:59.9]} 20. dxe5 {[%clk 0:02:37.2]} 20... Rxd3
{[%clk 0:02:00]} 21. Qxd3 {[%clk 0:02:38.1]} 21... Rd8 {[%clk 0:01:57.4]} 22.
Qe3 {[%clk 0:02:19.5]} 22... Ne8 {[%clk 0:01:42.2]} 23. h4 {[%clk 0:02:00.9]}
23... b6 {[%clk 0:01:36.7]} 24. Bc3 {[%clk 0:01:50.2]} 24... Qd7 {[%clk
0:01:34.1]} 25. g4 {[%clk 0:01:46.8]} 25... Qd3 {[%clk 0:01:28.8]} 26. Kg2
{[%clk 0:01:45.5]} 26... Nc7 {[%clk 0:01:19]} 27. Kf3 {[%clk 0:01:30.7]} 27...
Na6 {[%clk 0:01:16.1]} 28. Qxd3 {[%clk 0:01:29.3]} 28... Rxd3+ {[%clk
0:01:15.9]} 29. Re3 {[%clk 0:01:30.2]} 29... Rxe3+ {[%clk 0:01:04]} 30. Kxe3
{[%clk 0:01:31.1]} 30... Nb8 {[%clk 0:01:02]} 31. a3 {[%clk 0:01:29.9]} 31... a5
{[%clk 0:00:55.4]} 32. b4 {[%clk 0:01:02.1]} 32... axb4 {[%clk 0:00:56.3]} 33.
axb4 {[%clk 0:01:03]} 33... Nc6 {[%clk 0:00:32.9]} 34. bxc5 {[%clk 0:00:47.3]}
34... bxc5 {[%clk 0:00:33.8]} 35. Kd3 {[%clk 0:00:48.1]} 35... Kf8 {[%clk
0:00:25.3]} 36. Kc2 {[%clk 0:00:48]} 36... Ke7 {[%clk 0:00:24.6]} 37. Kb3 {[%clk
0:00:48.1]} 37... Kd7 {[%clk 0:00:23]} 38. Ka4 {[%clk 0:00:48.4]} 38... Na7
{[%clk 0:00:21.8]} 39. Ka5 {[%clk 0:00:42.4]} 39... Kc6 {[%clk 0:00:21.4]} 40.
Ka6 {[%clk 0:00:42]} 40... Nc8 {[%clk 0:00:21.6]} 41. Ba5 {[%clk 0:00:39.6]}
41... Ne7 {[%clk 0:00:07.7]} 42. Bd8 {[%clk 0:00:38.2]} 42... Ng8 {[%clk
0:00:06.8]} 43. f3 {[%clk 0:00:16.2]} 43... Kd7 {[%clk 0:00:06.4]} 44. Ba5
{[%clk 0:00:15.7]} 44... Kc6 {[%clk 0:00:06.6]} 45. Ka7 {[%clk 0:00:14.8]} 45...
Ne7 {[%clk 0:00:03.6]} 46. Bd8 {[%clk 0:00:13.5]} 46... Ng8 {[%clk 0:00:02.3]}
47. Kb8 {[%clk 0:00:12.7]} 47... Kd7 {[%clk 0:00:02.7]} 48. Bg5 {[%clk 0:00:12]}
48... Kc6 {[%clk 0:00:03.1]} 49. Kc8 {[%clk 0:00:11.2]} 49... f6 {[%clk
0:00:04]} 50. Bf4 {[%clk 0:00:10.8]} 50... f5 {[%clk 0:00:03.3]} 51. Bg5 {[%clk
0:00:10.1]} 51... fxg4 {[%clk 0:00:03.3]} 52. fxg4 {[%clk 0:00:11]} 52... Kb6
{[%clk 0:00:03.8]} 53. Kd7 {[%clk 0:00:11]} 53... Ka5 {[%clk 0:00:04.7]} 54.
Kxe6 {[%clk 0:00:10.1]} 54... Kb4 {[%clk 0:00:05.6]} 55. Kd5 {[%clk 0:00:10.7]}
55... Kc3 {[%clk 0:00:05.9]} 56. e6 {[%clk 0:00:10.5]} 1-0

[Event "*** Titled Tuesday Blitz"]
[Site "Chess.com"]
[Date "2021.02.09"]
[Round "1"]
[White "ecwinslow"]
[Black "googlegoom"]
[Result "1/2-1/2"]
[WhiteElo "2256"]
[BlackElo "2551"]
[TimeControl "180+1"]
[EndTime "10:08:11 PST"]
[Termination "Game drawn by repetition"]

1. d4 {[%clk 0:03:00.9]} 1... d5 {[%clk 0:02:59.9]} 2. c4 {[%clk 0:03:00]} 2...
c6 {[%clk 0:03:00.4]} 3. Nc3 {[%clk 0:02:59.4]} 3... Nf6 {[%clk 0:03:01]} 4. Nf3
{[%clk 0:02:58.4]} 4... e6 {[%clk 0:03:01.5]} 5. e3 {[%clk 0:02:56.7]} 5... Nbd7
{[%clk 0:03:01.7]} 6. Bd3 {[%clk 0:02:56.2]} 6... Bd6 {[%clk 0:03:02]} 7. O-O
{[%clk 0:02:48.8]} 7... O-O {[%clk 0:03:02.3]} 8. e4 {[%clk 0:02:43.5]} 8...
dxc4 {[%clk 0:03:02.5]} 9. Bxc4 {[%clk 0:02:42.9]} 9... e5 {[%clk 0:03:02.9]}
10. h3 {[%clk 0:02:36.9]} 10... Qe7 {[%clk 0:02:59.4]} 11. d5 {[%clk 0:02:33.6]}
11... Rd8 {[%clk 0:02:58.6]} 12. dxc6 {[%clk 0:02:26]} 12... bxc6 {[%clk
0:02:59.5]} 13. Qe2 {[%clk 0:02:24.5]} 13... Nc5 {[%clk 0:02:54.1]} 14. Rd1
{[%clk 0:02:21.2]} 14... Ne6 {[%clk 0:02:45.8]} 15. Be3 {[%clk 0:02:11.1]} 15...
c5 {[%clk 0:02:16.1]} 16. Nd5 {[%clk 0:02:04.7]} 16... Nxd5 {[%clk 0:02:13.4]}
17. Bxd5 {[%clk 0:02:04.4]} 17... Rb8 {[%clk 0:02:13.8]} 18. b3 {[%clk
0:01:52.8]} 18... Nd4 {[%clk 0:02:13.2]} 19. Bxd4 {[%clk 0:01:49]} 19... cxd4
{[%clk 0:02:11.8]} 20. Rac1 {[%clk 0:01:46.7]} 20... Bd7 {[%clk 0:01:56.6]} 21.
Nd2 {[%clk 0:01:44.3]} 21... Ba3 {[%clk 0:01:53.5]} 22. Rc2 {[%clk 0:01:42.3]}
22... Rdc8 {[%clk 0:01:49.9]} 23. Nc4 {[%clk 0:01:39.6]} 23... Bb4 {[%clk
0:01:43.4]} 24. Qh5 {[%clk 0:01:34]} 24... Bd6 {[%clk 0:01:42]} 25. Kh1 {[%clk
0:01:24]} 25... g6 {[%clk 0:01:41.2]} 26. Qh6 {[%clk 0:01:19.2]} 26... Qf6
{[%clk 0:01:32.7]} 27. Rdc1 {[%clk 0:01:12.1]} 27... Bf8 {[%clk 0:01:31.3]} 28.
Qd2 {[%clk 0:01:10.6]} 28... Kg7 {[%clk 0:01:31.7]} 29. Kh2 {[%clk 0:01:07.4]}
29... Bb4 {[%clk 0:01:31.1]} 30. Qe2 {[%clk 0:01:04.5]} 30... Bc3 {[%clk
0:01:27.2]} 31. g3 {[%clk 0:01:03.8]} 31... Re8 {[%clk 0:01:15.3]} 32. Rf1
{[%clk 0:01:02.3]} 32... Re7 {[%clk 0:01:07]} 33. Qd3 {[%clk 0:01:00.4]} 33...
Qg5 {[%clk 0:00:49.1]} 34. f4 {[%clk 0:00:55.7]} 34... exf4 {[%clk 0:00:48.5]}
35. gxf4 {[%clk 0:00:55.4]} 35... Qh4 {[%clk 0:00:48.3]} 36. Rg2 {[%clk
0:00:51.2]} 36... Rbe8 {[%clk 0:00:32.4]} 37. Qf3 {[%clk 0:00:45.8]} 37... f5
{[%clk 0:00:29.9]} 38. e5 {[%clk 0:00:42.2]} 38... Rd8 {[%clk 0:00:26.8]} 39.
Nd6 {[%clk 0:00:34.8]} 39... Bb4 {[%clk 0:00:21.4]} 40. Nc4 {[%clk 0:00:31.1]}
40... Be6 {[%clk 0:00:20.4]} 41. Bxe6 {[%clk 0:00:30]} 41... Rxe6 {[%clk
0:00:21.3]} 42. Qd3 {[%clk 0:00:29.5]} 42... Bc5 {[%clk 0:00:18]} 43. Rf3 {[%clk
0:00:28.6]} 43... Qe7 {[%clk 0:00:17.3]} 44. Rf1 {[%clk 0:00:22]} 44... Ra6
{[%clk 0:00:17.3]} 45. Rc1 {[%clk 0:00:20.9]} 45... Rc6 {[%clk 0:00:15.2]} 46.
Rgc2 {[%clk 0:00:20.2]} 46... Rc7 {[%clk 0:00:13.4]} 47. a3 {[%clk 0:00:19.5]}
47... Rdc8 {[%clk 0:00:11.8]} 48. b4 {[%clk 0:00:19]} 48... Bb6 {[%clk
0:00:12.3]} 49. Nd6 {[%clk 0:00:19]} 49... Rxc2+ {[%clk 0:00:11.6]} 50. Rxc2
{[%clk 0:00:19.6]} 50... Rxc2+ {[%clk 0:00:11.4]} 51. Qxc2 {[%clk 0:00:20.1]}
51... Bc7 {[%clk 0:00:11.6]} 52. Qc6 {[%clk 0:00:19.4]} 52... Bxd6 {[%clk
0:00:11.9]} 53. exd6 {[%clk 0:00:15.8]} 53... Qe2+ {[%clk 0:00:11.7]} 54. Kg3
{[%clk 0:00:15.2]} 54... Qe3+ {[%clk 0:00:11.2]} 55. Kg2 {[%clk 0:00:15.3]}
55... Qe2+ {[%clk 0:00:10.3]} 56. Kg3 {[%clk 0:00:15.4]} 56... Qe1+ {[%clk
0:00:09.6]} 57. Kg2 {[%clk 0:00:14.1]} 57... Qd2+ {[%clk 0:00:09.7]} 58. Kg3
{[%clk 0:00:13.5]} 58... Qc3+ {[%clk 0:00:09]} 59. Qxc3 {[%clk 0:00:11.8]} 59...
dxc3 {[%clk 0:00:09.9]} 60. d7 {[%clk 0:00:11.9]} 60... c2 {[%clk 0:00:10.8]}
61. d8=Q {[%clk 0:00:11.9]} 61... c1=Q {[%clk 0:00:11.7]} 62. Qe7+ {[%clk
0:00:11.6]} 62... Kg8 {[%clk 0:00:12.1]} 63. Qe8+ {[%clk 0:00:11.8]} 63... Kg7
{[%clk 0:00:12.1]} 64. Qe7+ {[%clk 0:00:11.2]} 64... Kh6 {[%clk 0:00:12]} 65.
Qg5+ {[%clk 0:00:10.9]} 65... Kg7 {[%clk 0:00:12.3]} 66. Qe7+ {[%clk 0:00:10.5]}
1/2-1/2